[Event "Titled Tuesday Blitz January 17 Late 2023"]
[White "Ardila, Oscar Humberto"]
[Black "Novikova, Galina"]
[WhiteFideId "4404742"]
[BlackFideId "4157095"]
[WhiteElo "1982"]
[BlackElo "2073"]
[Result "1-0"]
[Round "05"]
[TimeControl "180+2"]
[Date "2023.01.17"]
[WhiteClock "0:00:14"]
[BlackClock "0:00:02"]

1. d4 {[%clk 0:03:00]}  e6 {[%clk 0:03:00]} 2. Nf3 {[%clk 0:02:59]}  f5 {[%clk 0:03:01]} 3. g3 {[%clk 0:02:58]}  Nf6 {[%clk 0:03:01]} 4. Bg2 {[%clk 0:02:58]}  Be7 {[%clk 0:03:02]} 5. O-O {[%clk 0:02:58]}  O-O {[%clk 0:03:03]} 6. b3 {[%clk 0:02:57]}  d6 {[%clk 0:03:04]} 7. Bb2 {[%clk 0:02:57]}  Nc6 {[%clk 0:03:01]} 8. c4 {[%clk 0:02:56]}  Ne4 {[%clk 0:02:59]} 9. Nbd2 {[%clk 0:02:53]}  Nxd2 {[%clk 0:02:55]} 10. Qxd2 {[%clk 0:02:50]}  Bf6 {[%clk 0:02:56]} 11. Rad1 {[%clk 0:02:45]}  Ne7 {[%clk 0:02:46]} 12. Rfe1 {[%clk 0:02:43]}  Ng6 {[%clk 0:02:41]} 13. e4 {[%clk 0:02:42]}  f4 {[%clk 0:02:15]} 14. e5 {[%clk 0:02:14]}  Be7 {[%clk 0:02:07]} 15. d5 {[%clk 0:02:06]}  fxg3 {[%clk 0:02:03]} 16. hxg3 {[%clk 0:02:04]}  exd5 {[%clk 0:02:01]} 17. Qxd5+ {[%clk 0:02:03]}  Kh8 {[%clk 0:02:01]} 18. exd6 {[%clk 0:01:28]}  cxd6 {[%clk 0:01:57]} 19. Re3 {[%clk 0:01:12]}  Bg4 {[%clk 0:01:26]} 20. Rde1 {[%clk 0:01:11]}  Bf6 {[%clk 0:01:24]} 21. Bxf6 {[%clk 0:01:08]}  Qxf6 {[%clk 0:01:24]} 22. Rf1 {[%clk 0:00:54]}  Rae8 {[%clk 0:01:16]} 23. Rxe8 {[%clk 0:00:52]}  Rxe8 {[%clk 0:01:17]} 24. Nh2 {[%clk 0:00:45]}  Bc8 {[%clk 0:01:09]} 25. Rd1 {[%clk 0:00:40]}  Rf8 {[%clk 0:01:08]} 26. Rd2 {[%clk 0:00:33]}  Qe7 {[%clk 0:00:56]} 27. Qxd6 {[%clk 0:00:28]}  Qe1+ {[%clk 0:00:55]} 28. Nf1 {[%clk 0:00:29]}  Bg4 {[%clk 0:00:37]} 29. Qd4 {[%clk 0:00:18]}  Be6 {[%clk 0:00:19]} 30. Qe3 {[%clk 0:00:18]}  Qxe3 {[%clk 0:00:19]} 31. Nxe3 {[%clk 0:00:18]}  h6 {[%clk 0:00:17]} 32. Bxb7 {[%clk 0:00:18]}  Ne5 {[%clk 0:00:15]} 33. Bd5 {[%clk 0:00:18]}  Bxd5 {[%clk 0:00:15]} 34. Rxd5 {[%clk 0:00:18]}  Nf3+ {[%clk 0:00:15]} 35. Kg2 {[%clk 0:00:19]}  Ng5 {[%clk 0:00:14]} 36. Rd7 {[%clk 0:00:18]}  Ra8 {[%clk 0:00:13]} 37. Nf5 {[%clk 0:00:17]}  Ne4 {[%clk 0:00:11]} 38. Nxg7 {[%clk 0:00:17]}  a5 {[%clk 0:00:07]} 39. f4 {[%clk 0:00:16]}  Nc3 {[%clk 0:00:05]} 40. f5 {[%clk 0:00:16]}  Nxa2 {[%clk 0:00:05]} 41. f6 {[%clk 0:00:15]}  Nc3 {[%clk 0:00:04]} 42. Nf5 {[%clk 0:00:14]}  Ne4 {[%clk 0:00:02]} 43. f7 {[%clk 0:00:14]}  Rf8 {[%clk 0:00:01]} 44. Nxh6 {[%clk 0:00:13]}  Ng5 {[%clk 0:00:02]} 45. Ra7 {[%clk 0:00:13]}  Kg7 {[%clk 0:00:02]} 46. Nf5+ {[%clk 0:00:13]}  Kf6 {[%clk 0:00:02]} 47. Nd4 {[%clk 0:00:12]}  Ne4 {[%clk 0:00:01]} 48. Rxa5 {[%clk 0:00:12]}  Rxf7 {[%clk 0:00:01]} 49. Rf5+ {[%clk 0:00:13]}  Kg7 {[%clk 0:00:02]} 50. Rxf7+ {[%clk 0:00:13]}  Kxf7 {[%clk 0:00:03]} 51. Kf3 {[%clk 0:00:14]}  Nd2+ {[%clk 0:00:03]} 52. Kf4 {[%clk 0:00:14]}  Nb1 {[%clk 0:00:04]} 53. b4 {[%clk 0:00:13]}  Nd2 {[%clk 0:00:03]} 54. c5 {[%clk 0:00:14]}  Nc4 {[%clk 0:00:04]} 55. Nf5 {[%clk 0:00:13]}  Kf6 {[%clk 0:00:04]} 56. Nd6 {[%clk 0:00:13]}  Nd2 {[%clk 0:00:03]} 57. g4 {[%clk 0:00:13]}  Nb3 {[%clk 0:00:03]} 58. g5+ {[%clk 0:00:14]}  Kg6 {[%clk 0:00:03]} 59. Ke5 {[%clk 0:00:13]}  Kxg5 {[%clk 0:00:01]} 60. c6 {[%clk 0:00:14]}  Nd2 {[%clk 0:00:01]} 61. c7 {[%clk 0:00:14]}  Nc4+ {[%clk 0:00:02]} 62. Nxc4 {[%clk 0:00:14]} 1-0


[Site "https://www.chess.com"]

[Event "Titled Tuesday Blitz January 17 Late 2023"]
[White "Fajdetic, Hrvoje"]
[Black "Estrada Nieto, Julian"]
[WhiteFideId "14501945"]
[BlackFideId "5101018"]
[WhiteElo "2151"]
[BlackElo "2215"]
[Result "0-1"]
[Round "05"]
[TimeControl "180+2"]
[Date "2023.01.17"]
[WhiteClock "0:00:01"]
[BlackClock "0:00:06"]

1. f4 {[%clk 0:03:00]}  d5 {[%clk 0:02:59]} 2. Nf3 {[%clk 0:03:00]}  g6 {[%clk 0:02:59]} 3. e3 {[%clk 0:03:00]}  Bg7 {[%clk 0:02:58]} 4. Be2 {[%clk 0:03:00]}  Nf6 {[%clk 0:02:57]} 5. O-O {[%clk 0:02:59]}  O-O {[%clk 0:02:57]} 6. d3 {[%clk 0:02:59]}  c5 {[%clk 0:02:57]} 7. Qe1 {[%clk 0:02:57]}  Nc6 {[%clk 0:02:57]} 8. Qh4 {[%clk 0:02:55]}  Ng4 {[%clk 0:02:30]} 9. e4 {[%clk 0:02:34]}  Nd4 {[%clk 0:02:15]} 10. Bd1 {[%clk 0:02:29]}  Nxf3+ {[%clk 0:02:09]} 11. Bxf3 {[%clk 0:02:18]}  Bd4+ {[%clk 0:01:58]} 12. Kh1 {[%clk 0:02:15]}  e5 {[%clk 0:01:53]} 13. Qxd8 {[%clk 0:02:09]}  Rxd8 {[%clk 0:01:53]} 14. Bxg4 {[%clk 0:01:47]}  Bxg4 {[%clk 0:01:52]} 15. c3 {[%clk 0:01:48]}  Be2 {[%clk 0:01:48]} 16. Re1 {[%clk 0:01:47]}  Bxd3 {[%clk 0:01:42]} 17. cxd4 {[%clk 0:01:47]}  exd4 {[%clk 0:01:36]} 18. e5 {[%clk 0:01:36]}  a5 {[%clk 0:01:15]} 19. Nd2 {[%clk 0:01:34]}  a4 {[%clk 0:01:15]} 20. Nf3 {[%clk 0:01:30]}  Ra6 {[%clk 0:01:12]} 21. Kg1 {[%clk 0:00:57]}  b5 {[%clk 0:01:04]} 22. g4 {[%clk 0:00:49]}  b4 {[%clk 0:01:02]} 23. Bd2 {[%clk 0:00:40]}  h6 {[%clk 0:00:53]} 24. Rac1 {[%clk 0:00:39]}  Bc4 {[%clk 0:00:50]} 25. a3 {[%clk 0:00:35]}  bxa3 {[%clk 0:00:47]} 26. bxa3 {[%clk 0:00:36]}  Rb8 {[%clk 0:00:46]} 27. Rb1 {[%clk 0:00:33]}  Rb3 {[%clk 0:00:46]} 28. Kf2 {[%clk 0:00:26]}  Rab6 {[%clk 0:00:42]} 29. Ra1 {[%clk 0:00:24]}  Rb2 {[%clk 0:00:41]} 30. f5 {[%clk 0:00:23]}  Bd3 {[%clk 0:00:39]} 31. e6 {[%clk 0:00:13]}  Be4 {[%clk 0:00:38]} 32. e7 {[%clk 0:00:12]}  Rb8 {[%clk 0:00:35]} 33. Red1 {[%clk 0:00:10]}  gxf5 {[%clk 0:00:31]} 34. gxf5 {[%clk 0:00:10]}  f6 {[%clk 0:00:29]} 35. Kg3 {[%clk 0:00:09]}  Kf7 {[%clk 0:00:24]} 36. Bxh6 {[%clk 0:00:09]}  R8b3 {[%clk 0:00:20]} 37. Rf1 {[%clk 0:00:08]}  Rc3 {[%clk 0:00:17]} 38. Bf4 {[%clk 0:00:05]}  Rbb3 {[%clk 0:00:16]} 39. Bd6 {[%clk 0:00:04]}  Rxf3+ {[%clk 0:00:16]} 40. Rxf3 {[%clk 0:00:05]}  Rxf3+ {[%clk 0:00:15]} 41. Kg4 {[%clk 0:00:06]}  Rxf5 {[%clk 0:00:13]} 42. Re1 {[%clk 0:00:05]}  Rg5+ {[%clk 0:00:12]} 43. Kf4 {[%clk 0:00:04]}  Ke8 {[%clk 0:00:10]} 44. h4 {[%clk 0:00:02]}  Rg2 {[%clk 0:00:08]} 45. Rc1 {[%clk 0:00:01]}  c4 {[%clk 0:00:07]} 46. Bc5 {[%clk 0:00:02]}  Kd7 {[%clk 0:00:06]} 47. h5 {[%clk 0:00:02]}  Rf2+ {[%clk 0:00:05]} 48. Kg3 {[%clk 0:00:02]}  Rf3+ {[%clk 0:00:06]} 49. Kg4 {[%clk 0:00:01]}  d3 {[%clk 0:00:06]} 0-1


[Site "https://www.chess.com"]

[Event "Titled Tuesday Blitz January 17 Late 2023"]
[White "Davidson, Kevin"]
[Black "Mendez Machado, Andre"]
[WhiteFideId "2056810"]
[BlackFideId "6603793"]
[WhiteElo "2154"]
[BlackElo "1974"]
[Result "0-1"]
[Round "05"]
[TimeControl "180+2"]
[Date "2023.01.17"]
[WhiteClock "0:00:01"]
[BlackClock "0:00:13"]

1. e4 {[%clk 0:03:00]}  e5 {[%clk 0:02:56]} 2. Nf3 {[%clk 0:03:00]}  Nc6 {[%clk 0:02:55]} 3. Bb5 {[%clk 0:03:00]}  a6 {[%clk 0:02:55]} 4. Ba4 {[%clk 0:03:00]}  Nf6 {[%clk 0:02:54]} 5. O-O {[%clk 0:02:59]}  b5 {[%clk 0:02:54]} 6. Bb3 {[%clk 0:02:59]}  Bc5 {[%clk 0:02:55]} 7. a4 {[%clk 0:02:59]}  Rb8 {[%clk 0:02:48]} 8. c3 {[%clk 0:02:59]}  d6 {[%clk 0:02:48]} 9. d4 {[%clk 0:02:57]}  Bb6 {[%clk 0:02:48]} 10. a5 {[%clk 0:02:57]}  Ba7 {[%clk 0:02:47]} 11. Be3 {[%clk 0:02:57]}  Bg4 {[%clk 0:02:38]} 12. dxe5 {[%clk 0:02:55]}  Bxf3 {[%clk 0:02:19]} 13. Qxf3 {[%clk 0:02:56]}  Nxe5 {[%clk 0:02:17]} 14. Qh3 {[%clk 0:02:56]}  Bxe3 {[%clk 0:02:11]} 15. Qxe3 {[%clk 0:02:57]}  O-O {[%clk 0:01:59]} 16. Nd2 {[%clk 0:02:56]}  Ned7 {[%clk 0:01:22]} 17. f4 {[%clk 0:02:38]}  Re8 {[%clk 0:01:21]} 18. Qf3 {[%clk 0:02:32]}  b4 {[%clk 0:01:12]} 19. Bc4 {[%clk 0:02:15]}  bxc3 {[%clk 0:01:09]} 20. bxc3 {[%clk 0:02:16]}  Rb2 {[%clk 0:01:06]} 21. Rf2 {[%clk 0:01:51]}  Qa8 {[%clk 0:00:53]} 22. Re1 {[%clk 0:01:42]}  Qc6 {[%clk 0:00:39]} 23. e5 {[%clk 0:01:27]}  Qxf3 {[%clk 0:00:30]} 24. Nxf3 {[%clk 0:01:25]}  Rxf2 {[%clk 0:00:29]} 25. Kxf2 {[%clk 0:01:24]}  dxe5 {[%clk 0:00:24]} 26. fxe5 {[%clk 0:01:13]}  Nxe5 {[%clk 0:00:18]} 27. Nxe5 {[%clk 0:00:58]}  Rxe5 {[%clk 0:00:17]} 28. Rxe5 {[%clk 0:00:41]}  Ng4+ {[%clk 0:00:18]} 29. Ke2 {[%clk 0:00:35]}  Nxe5 {[%clk 0:00:18]} 30. Bxa6 {[%clk 0:00:35]}  Nc6 {[%clk 0:00:19]} 31. Bb7 {[%clk 0:00:23]}  Nxa5 {[%clk 0:00:19]} 32. Bd5 {[%clk 0:00:24]}  Kf8 {[%clk 0:00:18]} 33. Kd3 {[%clk 0:00:21]}  Ke7 {[%clk 0:00:18]} 34. Kd4 {[%clk 0:00:20]}  c6 {[%clk 0:00:17]} 35. Be4 {[%clk 0:00:14]}  Kd6 {[%clk 0:00:15]} 36. Bxh7 {[%clk 0:00:11]}  c5+ {[%clk 0:00:14]} 37. Ke4 {[%clk 0:00:09]}  g6 {[%clk 0:00:15]} 38. h4 {[%clk 0:00:06]}  Nc4 {[%clk 0:00:14]} 39. g4 {[%clk 0:00:04]}  Nd2+ {[%clk 0:00:14]} 40. Kf4 {[%clk 0:00:03]}  Ke6 {[%clk 0:00:14]} 41. h5 {[%clk 0:00:02]}  Kf6 {[%clk 0:00:13]} 42. hxg6 {[%clk 0:00:02]}  fxg6 {[%clk 0:00:14]} 43. Bg8 {[%clk 0:00:01]}  g5+ {[%clk 0:00:14]} 44. Ke3 {[%clk 0:00:01]}  Nb1 {[%clk 0:00:13]} 0-1


[Site "https://www.chess.com"]

[Event "Titled Tuesday Blitz January 17 Late 2023"]
[White "Seletsky, Grigory"]
[Black "Torres Dominguez, David"]
[WhiteFideId "14112191"]
[BlackFideId "2220857"]
[WhiteElo "2259"]
[BlackElo "1994"]
[Result "1-0"]
[Round "05"]
[TimeControl "180+2"]
[Date "2023.01.17"]
[WhiteClock "0:02:31"]
[BlackClock "0:01:36"]

1. d4 {[%clk 0:02:59]}  e5 {[%clk 0:02:51]} 2. dxe5 {[%clk 0:02:58]}  d6 {[%clk 0:02:50]} 3. e6 {[%clk 0:02:58]}  Bxe6 {[%clk 0:02:49]} 4. e4 {[%clk 0:02:57]}  Nf6 {[%clk 0:02:49]} 5. Nc3 {[%clk 0:02:58]}  d5 {[%clk 0:02:48]} 6. exd5 {[%clk 0:02:55]}  Nxd5 {[%clk 0:02:47]} 7. Nxd5 {[%clk 0:02:56]}  Bxd5 {[%clk 0:02:42]} 8. Nf3 {[%clk 0:02:56]}  Nc6 {[%clk 0:02:40]} 9. Be2 {[%clk 0:02:56]}  Bc5 {[%clk 0:02:38]} 10. O-O {[%clk 0:02:55]}  O-O {[%clk 0:02:38]} 11. c3 {[%clk 0:02:52]}  Re8 {[%clk 0:02:32]} 12. Bf4 {[%clk 0:02:48]}  Bb6 {[%clk 0:02:25]} 13. h3 {[%clk 0:02:44]}  a6 {[%clk 0:02:19]} 14. Re1 {[%clk 0:02:44]}  h6 {[%clk 0:02:14]} 15. Qd2 {[%clk 0:02:42]}  Be4 {[%clk 0:02:09]} 16. Rad1 {[%clk 0:02:40]}  Qxd2 {[%clk 0:02:05]} 17. Nxd2 {[%clk 0:02:39]}  Bc2 {[%clk 0:01:44]} 18. Rc1 {[%clk 0:02:38]}  Bg6 {[%clk 0:01:42]} 19. Nc4 {[%clk 0:02:34]}  Ne5 {[%clk 0:01:36]} 20. Nxe5 {[%clk 0:02:31]} 1-0


[Site "https://www.chess.com"]

[Event "Titled Tuesday Blitz January 17 Late 2023"]
[White "Djordjevic, Dejan N"]
[Black "Quinones Garcia, Santiago"]
[WhiteFideId "913316"]
[BlackFideId "4408497"]
[WhiteElo "2167"]
[BlackElo "2248"]
[Result "1-0"]
[Round "05"]
[TimeControl "180+2"]
[Date "2023.01.17"]
[WhiteClock "0:00:05"]
[BlackClock "0:00:39"]

1. e4 {[%clk 0:02:58]}  e5 {[%clk 0:02:59]} 2. Nf3 {[%clk 0:02:57]}  Nc6 {[%clk 0:03:00]} 3. Bc4 {[%clk 0:02:56]}  Nf6 {[%clk 0:03:00]} 4. d3 {[%clk 0:02:56]}  Be7 {[%clk 0:02:58]} 5. O-O {[%clk 0:02:55]}  d6 {[%clk 0:02:58]} 6. Re1 {[%clk 0:02:54]}  Na5 {[%clk 0:02:56]} 7. Bb3 {[%clk 0:02:44]}  Nxb3 {[%clk 0:02:53]} 8. axb3 {[%clk 0:02:44]}  O-O {[%clk 0:02:54]} 9. h3 {[%clk 0:02:43]}  c6 {[%clk 0:02:50]} 10. Nc3 {[%clk 0:02:42]}  Qc7 {[%clk 0:02:49]} 11. Be3 {[%clk 0:02:39]}  a6 {[%clk 0:02:46]} 12. d4 {[%clk 0:02:31]}  Be6 {[%clk 0:02:39]} 13. Ng5 {[%clk 0:02:20]}  Bd7 {[%clk 0:02:37]} 14. f4 {[%clk 0:02:19]}  Rad8 {[%clk 0:02:25]} 15. Qe2 {[%clk 0:02:11]}  h6 {[%clk 0:02:17]} 16. Nf3 {[%clk 0:02:09]}  exd4 {[%clk 0:02:17]} 17. Bxd4 {[%clk 0:02:07]}  Rfe8 {[%clk 0:02:16]} 18. Qf2 {[%clk 0:02:07]}  Rc8 {[%clk 0:02:13]} 19. Bb6 {[%clk 0:02:01]}  Qb8 {[%clk 0:02:13]} 20. Be3 {[%clk 0:01:37]}  Bf8 {[%clk 0:02:12]} 21. Bd4 {[%clk 0:01:31]}  Nh5 {[%clk 0:01:57]} 22. Qh4 {[%clk 0:01:14]}  g6 {[%clk 0:01:54]} 23. f5 {[%clk 0:01:13]}  c5 {[%clk 0:01:45]} 24. fxg6 {[%clk 0:01:00]}  fxg6 {[%clk 0:01:44]} 25. Bf2 {[%clk 0:00:57]}  Bg7 {[%clk 0:01:42]} 26. Nd5 {[%clk 0:00:54]}  Kh7 {[%clk 0:01:11]} 27. g4 {[%clk 0:00:53]}  Rf8 {[%clk 0:01:08]} 28. gxh5 {[%clk 0:00:42]}  Rxf3 {[%clk 0:01:07]} 29. hxg6+ {[%clk 0:00:42]}  Kh8 {[%clk 0:01:08]} 30. Bg3 {[%clk 0:00:24]}  Rcf8 {[%clk 0:01:07]} 31. Rf1 {[%clk 0:00:17]}  Qe8 {[%clk 0:01:07]} 32. Rxf3 {[%clk 0:00:15]}  Rxf3 {[%clk 0:01:08]} 33. Kg2 {[%clk 0:00:15]}  Rf8 {[%clk 0:01:06]} 34. Bf4 {[%clk 0:00:13]}  Qxg6+ {[%clk 0:01:06]} 35. Kh2 {[%clk 0:00:13]}  Qxe4 {[%clk 0:01:02]} 36. Rg1 {[%clk 0:00:12]}  Qxd5 {[%clk 0:00:53]} 37. Bxh6 {[%clk 0:00:09]}  Bf6 {[%clk 0:00:47]} 38. Bg5+ {[%clk 0:00:08]}  Kg7 {[%clk 0:00:40]} 39. Qh6+ {[%clk 0:00:08]}  Kf7 {[%clk 0:00:40]} 40. Qxf6+ {[%clk 0:00:08]}  Kg8 {[%clk 0:00:40]} 41. Qg6+ {[%clk 0:00:07]}  Kh8 {[%clk 0:00:39]} 42. Bf6+ {[%clk 0:00:06]}  Rxf6 {[%clk 0:00:39]} 43. Qg7# {[%clk 0:00:05]} 1-0


[Site "https://www.chess.com"]

[Event "Titled Tuesday Blitz January 17 Late 2023"]
[White "Desideri, Ricardo Maruchi"]
[Black "Rios Escobar, Adan"]
[WhiteFideId "2110440"]
[BlackFideId "3403645"]
[WhiteElo "1959"]
[BlackElo "2234"]
[Result "0-1"]
[Round "05"]
[TimeControl "180+2"]
[Date "2023.01.17"]
[WhiteClock "0:00:01"]
[BlackClock "0:00:04"]

1. e4 {[%clk 0:02:41]}  c5 {[%clk 0:02:59]} 2. Nf3 {[%clk 0:02:39]}  d6 {[%clk 0:03:00]} 3. d4 {[%clk 0:02:39]}  cxd4 {[%clk 0:03:01]} 4. Nxd4 {[%clk 0:02:39]}  Nf6 {[%clk 0:03:02]} 5. Nc3 {[%clk 0:02:39]}  a6 {[%clk 0:03:02]} 6. Rg1 {[%clk 0:02:39]}  e5 {[%clk 0:02:59]} 7. Nb3 {[%clk 0:02:37]}  h5 {[%clk 0:02:59]} 8. h3 {[%clk 0:02:36]}  Be6 {[%clk 0:02:56]} 9. g4 {[%clk 0:02:36]}  hxg4 {[%clk 0:02:54]} 10. hxg4 {[%clk 0:02:37]}  d5 {[%clk 0:02:55]} 11. g5 {[%clk 0:02:37]}  Nxe4 {[%clk 0:02:44]} 12. Nxe4 {[%clk 0:02:36]}  dxe4 {[%clk 0:02:45]} 13. Qe2 {[%clk 0:02:29]}  Rh4 {[%clk 0:02:19]} 14. Bd2 {[%clk 0:02:22]}  Qc8 {[%clk 0:02:16]} 15. g6 {[%clk 0:02:06]}  f6 {[%clk 0:02:09]} 16. Bg2 {[%clk 0:01:17]}  Bc4 {[%clk 0:01:59]} 17. Qe3 {[%clk 0:01:11]}  f5 {[%clk 0:01:26]} 18. O-O-O {[%clk 0:01:08]}  Nc6 {[%clk 0:01:24]} 19. Qc3 {[%clk 0:01:04]}  Qe6 {[%clk 0:01:21]} 20. Bg5 {[%clk 0:00:59]}  Rg4 {[%clk 0:01:20]} 21. Bh1 {[%clk 0:00:40]}  Rxg1 {[%clk 0:01:17]} 22. Rxg1 {[%clk 0:00:41]}  Be7 {[%clk 0:01:11]} 23. Bxe7 {[%clk 0:00:36]}  Kxe7 {[%clk 0:01:12]} 24. Nc5 {[%clk 0:00:29]}  Qd5 {[%clk 0:01:04]} 25. Nb3 {[%clk 0:00:12]}  Nd4 {[%clk 0:00:59]} 26. Kb1 {[%clk 0:00:08]}  Bxb3 {[%clk 0:00:51]} 27. axb3 {[%clk 0:00:07]}  Ne2 {[%clk 0:00:40]} 28. Qc7+ {[%clk 0:00:06]}  Kf6 {[%clk 0:00:28]} 29. Re1 {[%clk 0:00:06]}  Nd4 {[%clk 0:00:17]} 30. Rd1 {[%clk 0:00:04]}  Rh8 {[%clk 0:00:06]} 31. c3 {[%clk 0:00:03]}  Qxb3 {[%clk 0:00:06]} 32. Rc1 {[%clk 0:00:01]}  Nb5 {[%clk 0:00:04]} 0-1


[Site "https://www.chess.com"]

[Event "Titled Tuesday Blitz January 17 Late 2023"]
[White "Slavin, Alexey"]
[Black "Marcolino, Daniel Mattos"]
[WhiteFideId "24104388"]
[BlackFideId "2106841"]
[WhiteElo "2364"]
[BlackElo "2006"]
[Result "1-0"]
[Round "05"]
[TimeControl "180+2"]
[Date "2023.01.17"]
[WhiteClock "0:01:16"]
[BlackClock "0:00:44"]

1. e4 {[%clk 0:03:00]}  c6 {[%clk 0:02:58]} 2. d4 {[%clk 0:03:00]}  d5 {[%clk 0:02:59]} 3. e5 {[%clk 0:03:00]}  c5 {[%clk 0:02:59]} 4. c4 {[%clk 0:02:59]}  cxd4 {[%clk 0:02:58]} 5. Qxd4 {[%clk 0:02:59]}  Nc6 {[%clk 0:02:39]} 6. Qxd5 {[%clk 0:02:58]}  Qxd5 {[%clk 0:02:39]} 7. cxd5 {[%clk 0:02:58]}  Nxe5 {[%clk 0:02:38]} 8. Bf4 {[%clk 0:02:58]}  Ng6 {[%clk 0:02:36]} 9. Bb5+ {[%clk 0:02:53]}  Bd7 {[%clk 0:02:37]} 10. Bxd7+ {[%clk 0:02:53]}  Kxd7 {[%clk 0:02:37]} 11. Bg3 {[%clk 0:02:54]}  Nf6 {[%clk 0:02:36]} 12. Nc3 {[%clk 0:02:53]}  a6 {[%clk 0:02:34]} 13. Nf3 {[%clk 0:02:51]}  e6 {[%clk 0:02:33]} 14. dxe6+ {[%clk 0:02:50]}  Kxe6 {[%clk 0:02:33]} 15. O-O-O {[%clk 0:02:49]}  Kf5 {[%clk 0:01:24]} 16. Nd4+ {[%clk 0:02:41]}  Kg5 {[%clk 0:01:23]} 17. h4+ {[%clk 0:02:29]}  Kh5 {[%clk 0:01:22]} 18. f3 {[%clk 0:02:05]}  Rd8 {[%clk 0:00:46]} 19. Bf2 {[%clk 0:02:04]}  Bd6 {[%clk 0:00:46]} 20. g4+ {[%clk 0:02:03]}  Nxg4 {[%clk 0:00:46]} 21. fxg4+ {[%clk 0:02:02]}  Kxg4 {[%clk 0:00:46]} 22. Rhg1+ {[%clk 0:01:39]}  Kh5 {[%clk 0:00:45]} 23. Nf5 {[%clk 0:01:23]}  Be5 {[%clk 0:00:44]} 24. Rg5# {[%clk 0:01:16]} 1-0


[Site "https://www.chess.com"]

[Event "Titled Tuesday Blitz January 17 Late 2023"]
[White "Liu, Casper"]
[Black "Stanisz, Patryk"]
[WhiteFideId "1454153"]
[BlackFideId "1123106"]
[WhiteElo "2278"]
[BlackElo "2161"]
[Result "1-0"]
[Round "05"]
[TimeControl "180+2"]
[Date "2023.01.17"]
[WhiteClock "0:01:26"]
[BlackClock "0:00:06"]

1. d4 {[%clk 0:03:00]}  d5 {[%clk 0:02:59]} 2. c4 {[%clk 0:03:01]}  c6 {[%clk 0:02:58]} 3. Nc3 {[%clk 0:02:59]}  Nf6 {[%clk 0:02:58]} 4. Nf3 {[%clk 0:03:00]}  e6 {[%clk 0:02:59]} 5. Bg5 {[%clk 0:03:01]}  h6 {[%clk 0:02:59]} 6. Bh4 {[%clk 0:02:59]}  dxc4 {[%clk 0:02:59]} 7. e4 {[%clk 0:02:58]}  g5 {[%clk 0:02:56]} 8. Bg3 {[%clk 0:02:58]}  b5 {[%clk 0:02:54]} 9. e5 {[%clk 0:02:54]}  Nh5 {[%clk 0:02:45]} 10. Nd2 {[%clk 0:02:47]}  Nxg3 {[%clk 0:02:44]} 11. hxg3 {[%clk 0:02:48]}  Bb7 {[%clk 0:02:40]} 12. Nde4 {[%clk 0:02:48]}  Be7 {[%clk 0:02:40]} 13. Be2 {[%clk 0:02:40]}  Nd7 {[%clk 0:02:39]} 14. Bh5 {[%clk 0:02:38]}  b4 {[%clk 0:02:00]} 15. Qf3 {[%clk 0:02:34]}  Rf8 {[%clk 0:02:00]} 16. Ne2 {[%clk 0:02:34]}  c5 {[%clk 0:01:50]} 17. Nd6+ {[%clk 0:02:21]}  Bxd6 {[%clk 0:01:50]} 18. Qxb7 {[%clk 0:02:22]}  Be7 {[%clk 0:01:35]} 19. d5 {[%clk 0:02:13]}  Rb8 {[%clk 0:00:51]} 20. Qc6 {[%clk 0:01:52]}  Rc8 {[%clk 0:00:51]} 21. Qa4 {[%clk 0:01:52]}  Qb6 {[%clk 0:00:20]} 22. Rd1 {[%clk 0:01:51]}  Rd8 {[%clk 0:00:18]} 23. d6 {[%clk 0:01:50]}  a6 {[%clk 0:00:15]} 24. dxe7 {[%clk 0:01:50]}  Kxe7 {[%clk 0:00:15]} 25. f4 {[%clk 0:01:32]}  Qb7 {[%clk 0:00:14]} 26. Bf3 {[%clk 0:01:31]}  Qc7 {[%clk 0:00:14]} 27. Qxa6 {[%clk 0:01:30]}  Nb6 {[%clk 0:00:14]} 28. Rxh6 {[%clk 0:01:26]}  Rxd1+ {[%clk 0:00:13]} 29. Kxd1 {[%clk 0:01:27]}  Rd8+ {[%clk 0:00:14]} 30. Ke1 {[%clk 0:01:28]}  gxf4 {[%clk 0:00:11]} 31. gxf4 {[%clk 0:01:28]}  Ra8 {[%clk 0:00:06]} 32. Bxa8 {[%clk 0:01:26]} 1-0


[Site "https://www.chess.com"]

[Event "Titled Tuesday Blitz January 17 Late 2023"]
[White "Sabar, Ethmane Daouda"]
[Black "Ferriz Barrios, Andres"]
[WhiteFideId "19600097"]
[BlackFideId "5104467"]
[WhiteElo "2040"]
[BlackElo "2102"]
[Result "0-1"]
[Round "05"]
[TimeControl "180+2"]
[Date "2023.01.17"]
[WhiteClock "0:00:11"]
[BlackClock "0:01:53"]

1. e4 {[%clk 0:02:59]}  e6 {[%clk 0:02:58]} 2. d4 {[%clk 0:02:58]}  d5 {[%clk 0:02:59]} 3. Nc3 {[%clk 0:02:58]}  dxe4 {[%clk 0:02:59]} 4. Nxe4 {[%clk 0:02:59]}  Nd7 {[%clk 0:02:58]} 5. Nf3 {[%clk 0:02:58]}  Ngf6 {[%clk 0:02:51]} 6. Nc3 {[%clk 0:02:54]}  b6 {[%clk 0:02:51]} 7. Bd3 {[%clk 0:02:52]}  Bb7 {[%clk 0:02:51]} 8. O-O {[%clk 0:02:52]}  Bd6 {[%clk 0:02:51]} 9. Re1 {[%clk 0:02:50]}  a6 {[%clk 0:02:48]} 10. Bg5 {[%clk 0:02:33]}  h6 {[%clk 0:02:45]} 11. Bh4 {[%clk 0:02:33]}  O-O {[%clk 0:02:45]} 12. Ne5 {[%clk 0:02:17]}  Be7 {[%clk 0:02:38]} 13. Qe2 {[%clk 0:02:05]}  Nxe5 {[%clk 0:02:24]} 14. dxe5 {[%clk 0:02:04]}  Nd7 {[%clk 0:02:21]} 15. Bxe7 {[%clk 0:01:52]}  Qxe7 {[%clk 0:02:22]} 16. Rad1 {[%clk 0:01:43]}  Nc5 {[%clk 0:02:16]} 17. Ne4 {[%clk 0:01:37]}  Nxd3 {[%clk 0:02:10]} 18. Rxd3 {[%clk 0:01:38]}  Rad8 {[%clk 0:02:09]} 19. Red1 {[%clk 0:01:37]}  Rxd3 {[%clk 0:02:06]} 20. Qxd3 {[%clk 0:01:36]}  Qb4 {[%clk 0:02:03]} 21. c4 {[%clk 0:00:19]}  Qxb2 {[%clk 0:02:00]} 22. Re1 {[%clk 0:00:11]}  Qxe5 {[%clk 0:01:53]} 0-1


[Site "https://www.chess.com"]

[Event "Titled Tuesday Blitz January 17 Late 2023"]
[White "Castellanos Hernandez, Emilio Au"]
[Black "Bongo Akanga Ndjila, Barthelemy"]
[WhiteFideId "5114179"]
[BlackFideId "10609431"]
[WhiteElo "1964"]
[BlackElo "1824"]
[Result "1-0"]
[Round "05"]
[TimeControl "180+2"]
[Date "2023.01.17"]
[WhiteClock "0:02:38"]
[BlackClock "0:02:20"]

1. d4 {[%clk 0:02:56]}  d5 {[%clk 0:02:48]} 2. Bf4 {[%clk 0:02:56]}  Nf6 {[%clk 0:02:47]} 3. e3 {[%clk 0:02:57]}  e6 {[%clk 0:02:45]} 4. Nf3 {[%clk 0:02:57]}  Bd6 {[%clk 0:02:45]} 5. Bg3 {[%clk 0:02:57]}  O-O {[%clk 0:02:45]} 6. Nbd2 {[%clk 0:02:57]}  c5 {[%clk 0:02:45]} 7. c3 {[%clk 0:02:57]}  Qc7 {[%clk 0:02:45]} 8. Bd3 {[%clk 0:02:57]}  Nbd7 {[%clk 0:02:45]} 9. e4 {[%clk 0:02:56]}  dxe4 {[%clk 0:02:39]} 10. Nxe4 {[%clk 0:02:57]}  Nxe4 {[%clk 0:02:40]} 11. Bxe4 {[%clk 0:02:58]}  Nf6 {[%clk 0:02:39]} 12. Bc2 {[%clk 0:02:57]}  b6 {[%clk 0:02:32]} 13. dxc5 {[%clk 0:02:47]}  bxc5 {[%clk 0:02:28]} 14. Bxd6 {[%clk 0:02:44]}  Qb6 {[%clk 0:02:21]} 15. Bxf8 {[%clk 0:02:42]}  Kxf8 {[%clk 0:02:20]} 16. O-O {[%clk 0:02:38]} 1-0


[Site "https://www.chess.com"]